bitfinex/quotes_ETHUSD_20250810
["timestamp","ask_amount","ask_price","bid_price","bid_amount"]
[1754788410351,1e-08,4300.4,4300.3,15.26331368]
[1754788410530,1e-08,4300.4,4300.3,19.11331368]
[1754788410729,1e-08,4300.4,4300.3,19.57631368]
[1754788411339,0.04000001,4300.9,4300.8,2.3251488]
[1754788411522,1e-08,4300.9,4300.8,6.1741488]
[1754788411717,1e-08,4300.9,4300.8,6.7531488]
[1754788412455,1e-08,4300.9,4300.8,6.2901488]
[1754788413151,1e-08,4300.9,4300.8,6.7531488]
[1754788413335,1e-08,4300.9,4300.8,9.7531488]
[1754788413540,1e-08,4300.9,4300.8,5.4411488]
[1754788413742,1e-08,4300.9,4300.8,6.2891488]
[1754788414622,0.49060001,4300.9,4300.8,6.2891488]
[1754788414820,0.92410001,4300.9,4300.8,6.2891488]
[1754788415650,0.92410001,4300.9,4300.8,0.116]
[1754788415952,0.92410001,4300.9,4300.6,0.116]
[1754788416251,0.9241,4300.8,4300.7,2.32515723]
[1754788416556,0.9241,4300.8,4300.6,0.116]
[1754788416742,1.0401,4300.7,4300.1,3.846]
[1754788416934,0.9241,4300.6,4300.2,2.32547323]
[1754788417133,0.9241,4300.5,4300.2,2.32547323]
[1754788417332,0.9241,4300.4,4300.2,2.32547323]
[1754788417520,0.116,4300.7,4300.3,2.32641495]
[1754788417850,0.116,4300.7,4300.4,2.32536483]
[1754788418152,0.9241,4300.6,4300.4,2.32536483]
[1754788418321,0.116,4300.7,4300.4,2.32536483]
[1754788418527,0.9241,4300.5,4300.3,2.3264062]
[1754788418727,0.116,4300.7,4300.3,2.3264062]
[1754788419055,0.9241,4300.4,4300.3,0.001]
[1754788421039,0.9241,4300.4,4300.3,2.32641915]
[1754788421327,0.9241,4300.4,4300.3,0.001]
[1754788421554,0.9241,4300.4,4300.3,2.32641915]
[1754788421850,0.9241,4300.4,4300.1,2.32552731]
[1754788422021,0.116,4300.7,4300.1,2.32552731]
[1754788422223,0.9241,4300.3,4300.1,2.32552731]
[1754788422557,0.36030484,4300.7,4300.2,2.32546273]
[1754788423065,0.9241,4300.6,4300.2,2.32546273]
[1754788423359,0.9241,4300.5,4300.2,2.32546273]
[1754788423524,0.9241,4300.4,4300.2,2.32546273]
[1754788423720,0.36030484,4300.7,4300.3,2.32541425]
[1754788423924,0.4335,4300.4,4300.3,2.32541425]
[1754788424358,0.9241,4300.4,4300.2,2.32546858]
[1754788424656,0.116,4300.7,4300.3,2.32541068]
[1754788424857,0.36030542,4300.7,4300.3,2.32541068]
[1754788425169,0.116,4300.7,4300.3,2.32541068]
[1754788425454,0.9241,4300.6,4300.1,2.32552731]
[1754788425657,0.4906,4300.6,4300.5,2.32531101]
[1754788426239,0.4906,4300.6,4300.3,2.32541139]
[1754788426561,0.00200001,4300.9,4299.8,0.001]
[1754788426562,0.55,4300.3,4299.8,0.001]
[1754788426748,2.82437559,4300.2,4299.8,0.001]
[1754788427058,1.42295311,4300.2,4299.8,0.001]
[1754788427258,0.49885311,4300.2,4299.8,0.001]
[1754788427428,0.91,4300.1,4299.8,0.001]
[1754788427630,0.116,4299.9,4299.8,0.001]
[1754788428162,1.026,4299.9,4299.8,0.001]
[1754788428658,11.07578331,4299.9,4299.8,0.001]
[1754788428862,11.24121258,4299.9,4299.8,0.001]
[1754788430233,10.74063547,4299.9,4299.8,0.001]
[1754788431860,10.73963547,4299.9,4299.8,0.001]
[1754788432164,0.595,4299.9,4299.8,0.001]
[1754788432563,1.145,4299.9,4299.8,0.001]
[1754788432877,0.666,4299.9,4299.8,0.001]
[1754788435163,1.576,4299.9,4299.8,0.001]
[1754788436461,0.116,4299.9,4299.8,0.001]
[1754788438243,2.0191,4299.9,4299.8,0.001]
[1754788438444,4.34473547,4299.9,4299.8,0.001]
[1754788438632,4.37380591,4299.9,4299.8,0.001]
[1754788439639,4.34473547,4299.9,4299.8,0.001]
[1754788440386,4.37380591,4299.9,4299.8,0.001]
[1754788440537,4.34473547,4299.9,4299.8,0.001]
[1754788440737,8.17773547,4299.9,4299.8,0.001]
[1754788441865,11.17773547,4299.9,4299.8,0.001]
[1754788443833,7.34473547,4299.9,4299.8,0.001]
[1754788444037,11.17573547,4299.9,4299.8,0.001]
[1754788444476,6.91373547,4299.9,4299.8,0.001]
[1754788444677,10.74473547,4299.9,4299.8,0.001]
[1754788445040,3.946,4299.9,4299.8,0.001]
[1754788445265,6.82163547,4299.9,4299.8,0.001]
[1754788445467,6.27163547,4299.9,4299.8,0.001]
[1754788445638,3.946,4299.9,4299.8,0.001]
[1754788445840,4.496,4299.9,4299.8,0.001]
[1754788446770,9.11679388,4299.9,4299.8,0.001]
[1754788446972,12.11679388,4299.9,4299.8,0.001]
[1754788447578,15.31679388,4299.9,4299.8,0.001]
[1754788447738,19.14579388,4299.9,4299.8,0.001]
[1754788451086,10.146,4299.9,4299.8,0.001]
[1754788451258,16.29863547,4299.9,4299.8,0.001]
[1754788451653,16.84863547,4299.9,4299.8,0.001]
[1754788451854,17.75863547,4299.9,4299.8,0.001]
[1754788454264,18.25963801,4299.9,4299.8,0.001]
[1754788454765,20.31815568,4299.9,4299.8,0.001]
[1754788456955,16.49115568,4299.9,4299.8,0.001]
[1754788457156,19.88315568,4299.9,4299.8,0.001]
[1754788457358,7.64700254,4299.9,4299.8,0.001]
[1754788457555,10.969,4299.9,4299.8,0.001]
[1754788457781,11.519,4299.9,4299.8,0.001]
[1754788459095,13.84463547,4299.9,4299.8,0.001]
[1754788459256,11.519,4299.9,4299.8,0.001]
[1754788459662,7.696,4299.9,4299.8,0.001]
[1754788459960,11.517,4299.9,4299.8,0.001]
[1754788460590,7.696,4299.9,4299.8,0.001]
[1754788460795,11.517,4299.9,4299.8,0.001]
[1754788461507,7.146,4299.9,4299.8,0.001]
[1754788461711,10.966,4299.9,4299.8,0.001]
[1754788462006,10.966,4299.9,4299.8,2.77438956]
[1754788462007,0.116,4299.9,4299.8,2.77438956]
[1754788462169,3.938,4300.3,4300.2,2.32547323]
[1754788462364,3.938,4300.3,4300.2,2.77317323]
[1754788462594,0.002,4300.3,4300.2,2.77317323]
[1754788466365,0.002,4300.3,4300.2,2.32547323]
[1754788467080,0.002,4300.3,4300.2,2.77317323]
[1754788467770,0.002,4300.3,4300.2,2.32547323]
[1754788470190,0.002,4300.3,4300.1,2.32552704]
[1754788470397,0.4607,4300.2,4300.1,2.32552704]
[1754788470571,0.4738,4300.3,4300.2,2.32547323]
[1754788470572,0.002,4300.3,4300.2,2.32547323]
[1754788472400,4.2868,4300.3,4299.0,0.001]
[1754788472710,5.87590594,4299.4,4299.0,0.001]
[1754788472900,2.87606824,4299.1,4299.0,0.001]
[1754788473101,2.87606824,4299.1,4296.1,0.12119107]
[1754788473102,2.87682597,4297.7,4296.3,2.327568]
[1754788473281,6.97750857,4297.7,4296.3,2.327568]
[1754788473481,7.91000857,4297.7,4296.4,2.32751374]
[1754788473677,7.91000857,4297.7,4296.5,2.32746937]
[1754788473878,7.91000857,4297.7,4296.4,0.4681]
[1754788474075,0.4718,4297.7,4296.4,0.4681]
[1754788474309,0.4718,4297.7,4295.9,3.0]
[1754788474310,6.13982597,4297.7,4296.9,0.4681]
[1754788474700,2.32682597,4297.7,4296.6,0.04]
[1754788474900,7.62132597,4297.7,4296.6,0.04]
[1754788475101,10.62132597,4297.7,4296.6,0.04]
[1754788475414,11.91613146,4297.7,4296.6,0.04]
[1754788476212,11.45543146,4297.7,4296.6,0.04]
[1754788476713,11.91613146,4297.7,4296.6,0.04]
[1754788476919,3.55,4297.6,4296.6,0.04]
[1754788477217,2.87736751,4296.7,4296.6,0.04]
[1754788477442,6.7184596,4296.7,4296.6,0.04]
[1754788477711,7.62186751,4296.7,4296.6,0.04]
[1754788478129,7.16116751,4296.7,4296.6,0.04]
[1754788478610,7.62186751,4296.7,4296.6,0.04]
[1754788478816,8.61678209,4296.7,4296.6,0.04]
[1754788479281,1.0218,4296.7,4296.6,0.04]
[1754788479619,4.361,4296.7,4296.6,0.04]
[1754788480611,6.68936751,4296.7,4296.6,0.04]
[1754788480812,4.361,4296.7,4296.6,0.04]
[1754788481316,0.55,4296.7,4296.6,0.04]
[1754788481521,3.811,4296.7,4296.6,0.04]
[1754788481817,3.0,4296.6,4294.6,0.04]
[1754788482049,2.3279093,4295.7,4294.6,0.04]
[1754788482252,9.90448317,4295.7,4294.6,0.04]
[1754788482422,10.95298317,4295.7,4294.6,0.04]
[1754788482765,0.55,4294.9,4292.9,0.699249]
[1754788483066,2.328614,4294.4,4293.3,2.32921061]
[1754788483334,3.0,4294.9,4294.3,1.2166]
[1754788483496,6.13929118,4295.0,4294.3,1.6643]
[1754788483693,3.811,4295.0,4294.3,1.6643]
[1754788483897,2.32841606,4294.8,4294.3,0.7485]
[1754788484120,2.87844424,4294.8,4294.3,0.7485]
[1754788484318,3.811,4295.0,4294.3,0.7485]
[1754788484521,3.811,4295.0,4294.4,0.4681]
[1754788485551,3.811,4295.0,4294.4,2.79671336]
[1754788485853,3.811,4295.0,4294.4,0.4681]
[1754788486831,0.55,4295.2,4294.4,2.79670356]
[1754788487013,5.87818971,4295.2,4294.4,0.4681]
[1754788487208,2.32842609,4294.8,4294.3,0.7485]
[1754788487415,0.55,4294.6,4294.3,0.7485]
[1754788487602,0.55,4294.7,4294.3,0.7485]
[1754788487800,0.55,4294.5,4294.3,0.7485]
[1754788488202,2.328614,4294.4,4294.3,0.7485]
[1754788488396,0.55,4294.5,4294.3,0.7485]
[1754788488602,2.87856685,4294.5,4294.3,0.7485]
[1754788488810,2.878614,4294.4,4294.3,0.7485]
[1754788489010,0.55,4294.4,4294.3,0.7485]
[1754788489533,3.812,4294.8,4294.3,0.7485]
[1754788490507,3.55,4294.7,4294.3,0.7485]
[1754788490711,0.55,4294.4,4294.3,0.7485]
[1754788491029,6.690614,4294.4,4294.3,0.7485]
[1754788491208,7.601414,4294.4,4294.3,0.7485]
[1754788491922,10.601414,4294.4,4294.3,0.7485]
[1754788492131,11.89440596,4294.4,4294.3,0.7485]
[1754788492328,0.55,4293.7,4293.1,0.001]
[1754788492633,0.6668,4293.7,4293.1,0.001]
[1754788492838,2.99579364,4293.7,4293.1,0.001]
[1754788493406,0.6668,4293.7,4293.1,0.001]
[1754788493748,2.99579364,4293.7,4293.1,0.001]
[1754788494243,5.12026283,4293.7,4293.1,0.001]
[1754788494404,4.66706283,4293.7,4293.1,0.001]
[1754788494807,4.66706283,4293.7,4293.1,1e-08]
[1754788494808,2.87904788,4293.6,4293.1,1e-08]
[1754788495054,0.55,4293.1,4292.6,0.04]
[1754788495345,5.87953618,4292.7,4292.6,0.04]
[1754788495541,9.69253618,4292.7,4292.6,0.04]
[1754788495747,10.60333618,4292.7,4292.6,0.04]
[1754788496103,12.03333618,4292.7,4292.6,1e-08]
[1754788497256,12.52691336,4292.7,4292.6,1e-08]
[1754788497571,13.57776539,4292.7,4292.6,1e-08]
[1754788497734,14.07133877,4292.7,4292.6,1e-08]
[1754788498174,12.64133877,4292.7,4292.6,1e-08]
[1754788498470,12.64151848,4292.7,4292.6,1e-08]
[1754788498671,12.14776539,4292.7,4292.6,1e-08]
[1754788498847,12.64152304,4292.7,4292.6,1e-08]
[1754788499852,8.73072304,4292.7,4292.6,1e-08]
[1754788500052,9.69253618,4292.7,4292.6,1e-08]
[1754788500250,10.15013618,4292.7,4292.6,1e-08]
[1754788500670,11.2764043,4292.7,4292.6,1e-08]
[1754788501165,12.51708562,4292.7,4292.6,1e-08]
[1754788501764,3.55,4292.6,4291.6,1e-08]
[1754788501945,5.88007898,4291.7,4291.6,1e-08]
[1754788502284,10.80685077,4291.7,4291.6,1e-08]
[1754788502442,10.18772684,4291.7,4291.6,1e-08]
[1754788503271,11.26445077,4291.7,4291.6,1e-08]
[1754788504084,11.09852684,4291.7,4291.6,1e-08]
[1754788504383,13.34942784,4291.7,4291.6,1e-08]
[1754788504877,13.46622784,4291.7,4291.6,1e-08]
[1754788505042,13.01302784,4291.7,4291.6,1e-08]
[1754788506099,12.18752926,4291.7,4291.6,1e-08]
[1754788506792,11.72992926,4291.7,4291.6,1e-08]
[1754788507293,12.55709929,4291.7,4291.6,1e-08]
[1754788507452,11.72992926,4291.7,4291.6,1e-08]
[1754788507653,12.55744212,4291.7,4291.6,1e-08]
[1754788508082,10.5820397,4291.7,4291.6,1e-08]
[1754788508278,9.75452684,4291.7,4291.6,1e-08]
[1754788508777,11.13226353,4291.7,4291.6,1e-08]
[1754788508948,7.31926353,4291.7,4291.6,1e-08]
[1754788509148,6.49152684,4291.7,4291.6,1e-08]
[1754788509680,4.04464786,4291.7,4291.6,1e-08]
[1754788509853,4.16144786,4291.7,4291.6,1e-08]
[1754788510049,6.49152684,4291.7,4291.6,0.47430001]
[1754788511456,7.31959191,4291.7,4291.6,0.47430001]
[1754788511660,0.61144786,4291.7,4291.6,3.25393329]
[1754788511969,0.1168,4291.7,4291.6,3.25393329]
[1754788512176,0.62192929,4292.3,4291.6,0.92380001]
[1754788512363,4.31170508,4292.2,4291.6,0.92380001]
[1754788512688,0.49770508,4292.1,4292.0,2.32991612]
[1754788512892,0.49770508,4292.5,4292.0,0.9238]
[1754788513061,0.49775813,4292.4,4292.3,2.32975105]
[1754788513259,0.49775813,4292.4,4292.3,0.9238]
[1754788513661,0.49775813,4292.6,4292.3,3.2535435]
[1754788513857,0.49775813,4292.5,4292.4,2.803999]
[1754788514052,3.814,4292.7,4292.5,0.4743]
[1754788514259,0.62192929,4293.2,4292.5,2.80392778]
[1754788514497,0.49794725,4293.1,4293.0,2.32937339]
[1754788514673,0.49786139,4293.5,4292.9,0.01161095]
[1754788515004,0.002,4293.6,4293.5,2.32910213]
[1754788515183,0.002,4293.6,4293.5,3.25290213]
[1754788515690,0.002,4293.6,4293.5,3.26450603]
[1754788516496,1e-08,4294.0,4293.9,2.32888516]
[1754788516988,1e-08,4294.0,4293.9,6.26428364]
[1754788517191,1e-08,4294.0,4293.9,3.25268516]
[1754788519582,1e-08,4294.0,4293.9,6.25268516]
[1754788520381,1e-08,4294.0,4293.9,10.06468516]
[1754788520584,1e-08,4294.0,4293.9,6.25268516]
[1754788520760,1e-08,4294.0,4293.9,10.06368516]
[1754788521568,1e-08,4294.0,4293.9,2.81688516]
[1754788521772,1e-08,4294.0,4293.9,3.26718516]
[1754788521989,1e-08,4294.0,4293.9,3.27878364]
[1754788522189,1e-08,4294.0,4293.9,6.38398516]
[1754788524579,1e-08,4294.0,4293.9,6.93398516]
[1754788525085,1e-08,4294.0,4293.9,10.74398516]
[1754788525391,1e-08,4294.9,4294.8,2.32839713]
[1754788525593,1e-08,4294.9,4294.8,9.26678341]
[1754788525889,1e-08,4294.9,4294.8,10.19349713]
[1754788526080,0.002,4295.5,4295.4,2.32807189]
[1754788526491,0.002,4295.5,4295.4,6.25487189]
[1754788528185,0.002,4295.5,4295.3,6.13712448]
[1754788528186,0.4585,4295.5,4295.3,6.13712448]
[1754788528497,0.4565,4295.4,4295.3,2.32812448]
[1754788529472,0.002,4295.5,4295.4,2.32807189]
[1754788529673,0.002,4295.5,4295.2,2.32815524]
[1754788529887,0.4565,4295.4,4294.5,2.32850852]
[1754788530195,0.9134,4295.4,4294.6,3.809]
[1754788530401,0.002,4295.5,4295.4,2.32807189]
[1754788530934,0.002,4295.5,4295.1,3.808]
[1754788531099,0.4589,4295.5,4295.2,2.32817114]
[1754788531272,0.4565,4295.4,4295.2,2.32817114]
[1754788531467,0.4565,4295.4,4295.1,3.808]
[1754788531673,0.4565,4295.4,4295.2,2.32818029]
[1754788531986,0.4565,4295.4,4295.1,3.808]
[1754788532185,0.002,4295.5,4295.4,2.32807189]
[1754788532577,0.002,4295.5,4295.2,2.32813398]
[1754788532777,0.002,4295.5,4295.1,3.808]
[1754788532976,0.002,4295.5,4295.4,2.32807189]
[1754788533699,0.002,4295.5,4295.4,3.26637189]
[1754788533899,0.002,4295.5,4295.4,3.27795004]
[1754788534106,1e-08,4295.5,4295.4,6.27795004]
[1754788534286,0.002,4296.4,4296.3,2.3275842]
[1754788534478,0.002,4296.4,4296.3,6.1355842]
[1754788534699,0.002,4296.4,4296.3,2.8155842]
[1754788534901,0.002,4296.4,4296.3,6.1355842]
[1754788535221,0.002,4296.4,4296.3,2.3275842]
[1754788535919,0.002,4296.4,4296.3,2.33915015]
[1754788536222,0.002,4296.4,4296.1,6.13467143]
[1754788536424,0.4565,4296.3,4295.2,2.32814479]
[1754788536592,0.9134,4296.3,4296.1,2.32768694]
[1754788536799,0.4565,4296.3,4296.1,2.32769255]
[1754788536998,0.4565,4296.2,4296.1,2.32769255]
[1754788537525,0.4565,4296.2,4296.0,6.13474631]
[1754788537727,0.4565,4296.2,4296.1,2.32769255]
[1754788537929,0.002,4296.4,4296.3,2.3275842]
[1754788538137,0.002,4296.4,4296.3,6.1345842]
[1754788538301,0.002,4296.4,4296.3,6.2505842]
[1754788538512,0.002,4296.4,4296.3,7.1888842]
[1754788538712,0.002,4296.4,4296.3,6.7385842]
[1754788539656,1e-08,4296.4,4296.3,7.1888842]
[1754788540518,1e-08,4296.4,4296.3,10.1888842]
[1754788540851,1e-08,4296.4,4296.3,10.1878842]
[1754788541149,1e-08,4296.4,4296.3,9.7375842]
[1754788541360,1e-08,4296.9,4296.8,2.32731334]
[1754788541658,1e-08,4296.9,4296.8,9.14487252]
[1754788541812,1e-08,4296.9,4296.8,10.07161334]
[1754788542142,1e-08,4296.9,4296.8,10.62161334]
[1754788542348,1e-08,4296.9,4296.8,10.73761334]
[1754788543619,1e-08,4296.9,4296.8,9.73631334]
[1754788544543,1e-08,4296.9,4296.8,5.44331334]
[1754788544945,1e-08,4296.9,4296.8,9.24831334]
[1754788545351,1e-08,4296.9,4296.8,6.24831334]
[1754788546954,1e-08,4296.9,4296.8,6.24731334]
[1754788547147,0.92890001,4296.9,4296.8,6.24731334]
[1754788548557,1e-08,4296.9,4296.8,9.24731334]
[1754788548736,1e-08,4296.9,4296.8,10.18461334]
[1754788549324,1e-08,4296.9,4296.8,9.71661334]
[1754788551455,1e-08,4296.9,4296.8,10.18461334]
[1754788552153,1e-08,4296.9,4296.8,9.71661334]
[1754788552357,1e-08,4296.9,4296.8,2.32731334]
[1754788552358,0.45470001,4296.9,4296.8,2.32731334]
[1754788552537,0.92710001,4296.9,4296.8,2.32731334]
[1754788553855,0.92710001,4296.9,4296.7,3.803]
[1754788553856,0.92710001,4296.9,4296.7,6.13036527]
[1754788554058,1e-08,4296.9,4296.8,2.32731334]
[1754788554624,0.92710001,4296.9,4296.8,2.32731334]
[1754788555423,0.92710001,4296.9,4296.5,3.803]
[1754788555756,0.9271,4296.8,4296.5,3.803]
[1754788555957,0.9271,4296.7,4295.0,0.4693]
[1754788556138,0.4547,4296.7,4295.7,3.0]
[1754788556334,1e-08,4296.9,4296.7,2.32731405]
[1754788556740,0.4547,4296.8,4296.6,3.802]
[1754788557342,1e-08,4296.9,4296.7,2.32731782]
[1754788557538,1e-08,4296.9,4296.8,2.32731334]
[1754788557958,1e-08,4296.9,4296.6,3.802]
[1754788557959,0.92710001,4296.9,4296.6,2.32736879]
[1754788558137,0.47240001,4296.9,4296.6,2.32736883]
[1754788558340,0.4724,4296.8,4296.5,3.802]
[1754788558542,0.4724,4296.7,4296.4,2.32747957]
[1754788558739,0.9271,4296.6,4296.4,2.32747957]
[1754788558965,0.9271,4296.5,4296.2,3.802]
[1754788559166,0.9271,4296.4,4296.1,3.802]
[1754788559457,0.9271,4296.3,4296.2,2.32763837]
[1754788560033,0.4547,4296.3,4296.2,2.32763837]
[1754788560236,1e-08,4296.9,4296.1,3.802]
[1754788560729,1e-08,4296.9,4296.8,2.32731334]
[1754788560951,1e-08,4296.9,4296.8,6.12931334]
[1754788561370,1e-08,4296.9,4296.8,6.59861334]
[1754788561533,1e-08,4296.9,4296.8,7.06661334]
[1754788562272,1e-08,4296.9,4296.8,10.06661334]
[1754788562471,1e-08,4296.9,4296.8,10.73261334]
[1754788563351,1e-08,4297.4,4297.3,2.32704256]
[1754788563537,1e-08,4297.4,4297.3,9.24404256]
[1754788563733,1e-08,4297.4,4297.3,10.18134256]
[1754788564166,1e-08,4297.4,4297.3,2.32704256]
[1754788564875,1e-08,4297.4,4297.3,6.12804256]
[1754788566359,1e-08,4297.4,4297.3,9.59734256]
[1754788567071,1e-08,4297.4,4297.3,10.06534256]
[1754788567567,1e-08,4298.2,4297.8,3.55]
[1754788567767,1e-08,4298.2,4298.1,2.32660943]
[1754788567968,1e-08,4298.2,4298.1,9.68815101]
[1754788568167,1e-08,4298.2,4298.1,10.61390943]
[1754788570755,1e-08,4298.2,4298.1,10.82674309]
[1754788571471,1e-08,4298.2,4298.1,10.82663352]
[1754788573957,0.04,4298.9,4298.8,2.32623057]
[1754788574288,0.04,4298.9,4298.8,6.33781251]
[1754788574488,0.04,4298.9,4298.8,6.45381251]
[1754788575795,0.04,4298.9,4298.8,9.80711251]
[1754788575796,1e-08,4298.9,4298.8,9.80711251]
[1754788576091,1e-08,4299.1,4299.0,2.32612235]
[1754788576391,1e-08,4299.1,4299.0,9.33670429]
[1754788577076,1e-08,4299.1,4299.0,9.33636]
[1754788577282,0.44090001,4299.1,4299.0,9.33636]
[1754788577866,0.44090001,4299.1,4299.0,2.53936]
[1754788578091,0.94060001,4299.1,4299.0,0.21323765]
[1754788578264,0.94060001,4299.1,4299.0,2.53936]
[1754788578788,0.44090001,4299.1,4299.0,2.53936]
[1754788578989,0.94060001,4299.1,4299.0,2.53936]
[1754788579589,0.44090001,4299.1,4299.0,2.53936]
[1754788579779,0.94060001,4299.1,4299.0,0.21323765]
[1754788580393,0.94060001,4299.1,4299.0,2.53936]
[1754788580555,0.94060001,4299.1,4299.0,0.21323765]
[1754788583394,0.44090001,4299.1,4299.0,2.53936]
[1754788583582,1e-08,4299.1,4299.0,6.45036]
[1754788584001,1e-08,4299.1,4299.0,6.94656]
[1754788584160,1e-08,4299.1,4299.0,9.94656]
[1754788584561,1e-08,4299.1,4299.0,9.45036]
[1754788584792,0.44090001,4299.1,4299.0,2.65536]
[1754788584977,0.44090001,4299.1,4299.0,6.45036]
[1754788585191,1e-08,4299.1,4299.0,6.45036]
[1754788585393,1e-08,4299.1,4299.0,6.94656]
[1754788585691,1e-08,4299.1,4299.0,6.45036]
[1754788585991,1e-08,4299.1,4299.0,6.45018513]
[1754788586907,1e-08,4299.1,4299.0,2.65518513]
[1754788587074,1e-08,4299.1,4299.0,6.44918513]
[1754788587983,0.44090001,4299.1,4299.0,6.44918513]
[1754788588597,0.94060001,4299.1,4299.0,6.44918513]
[1754788588788,0.94060001,4299.1,4299.0,4.12306278]
[1754788589084,0.94060001,4299.1,4299.0,0.32906278]
[1754788589282,0.94060001,4299.1,4299.0,2.65518513]
[1754788589481,0.94060001,4299.1,4299.0,0.32906278]
[1754788590485,3.26666825,4299.1,4299.0,0.32906278]
[1754788590804,7.37593228,4299.1,4299.0,0.21306278]
[1754788591063,8.09193228,4299.1,4299.0,0.21306278]
[1754788591497,2.32656049,4298.2,4297.5,3.909]
[1754788591682,1.0566,4298.1,4297.6,0.21355685]
[1754788591882,1.0566,4298.1,4297.7,0.21355685]
[1754788592082,0.9406,4298.0,4297.8,0.21355685]
[1754788592283,0.9406,4298.0,4297.9,0.21355685]
[1754788593403,0.9406,4298.0,4297.9,0.21364036]
[1754788594391,3.26726356,4298.0,4297.9,0.21364036]
[1754788594580,0.9406,4298.0,4297.9,0.21364036]
[1754788595614,0.4409,4298.5,4297.9,0.21364036]
[1754788595815,0.4409,4298.5,4298.0,0.21364036]
[1754788595992,0.9406,4298.4,4298.1,0.21364036]
[1754788596317,0.116,4298.6,4298.2,0.21364036]
[1754788596501,0.4409,4298.4,4298.3,0.21364036]
[1754788597522,0.116,4298.6,4298.3,0.21364036]
[1754788597689,0.5569,4298.6,4298.4,0.21364036]
[1754788598014,0.4997,4299.0,4298.5,0.21364036]
[1754788598227,2.32628469,4298.7,4298.6,0.21364036]
[1754788598419,2.44228469,4298.7,4298.6,0.21364036]
[1754788598714,1.0566,4298.7,4298.6,0.21364036]
[1754788599799,0.5569,4298.7,4298.6,0.21364036]
[1754788599980,0.4409,4298.7,4298.6,0.21364036]
[1754788601813,0.9406,4298.7,4298.6,0.21364036]
[1754788601994,1.39779229,4298.7,4298.6,0.21364036]
[1754788602700,1.0566,4298.7,4298.6,0.21364036]
[1754788602903,0.4409,4299.0,4298.6,0.21364036]
[1754788603102,0.4409,4298.9,4298.7,0.21364036]
[1754788603317,1e-08,4299.1,4298.8,0.21364036]
[1754788603492,3.0,4299.0,4298.9,0.21364036]
[1754788603697,3.02907652,4299.0,4298.9,0.21364036]
[1754788604018,3.96967652,4299.0,4298.9,0.21364036]
[1754788604588,0.96967652,4299.0,4298.9,0.21364036]
[1754788605314,3.96967652,4299.0,4298.9,0.21352061]
[1754788605520,5.08228282,4299.0,4298.9,0.21352061]
[1754788605887,7.40840517,4299.0,4298.9,0.21352061]
[1754788606204,7.37932865,4299.0,4298.9,0.21352061]
[1754788608692,7.92932865,4299.0,4298.9,0.21352061]
[1754788610669,7.92932865,4299.0,4297.7,0.001]
[1754788610670,0.55,4298.7,4297.7,0.001]
[1754788610965,2.44277183,4297.8,4297.7,0.001]
[1754788611168,9.80985647,4297.8,4297.7,0.001]
[1754788611369,10.70027183,4297.8,4297.7,0.001]
[1754788612851,8.3735,4297.8,4297.4,1e-08]
[1754788613050,16.27383966,4297.5,4297.4,1e-08]
[1754788613250,20.06183966,4297.5,4297.4,1e-08]
[1754788613625,20.98133966,4297.5,4297.4,1e-08]
[1754788616078,21.48061097,4297.5,4297.4,1e-08]
[1754788616372,20.98133966,4297.5,4297.4,1e-08]
[1754788616678,23.29838034,4297.5,4297.4,1e-08]
[1754788618366,23.4708928,4297.5,4297.4,1e-08]
[1754788620170,11.7204874,4297.5,4297.4,1e-08]
[1754788620373,6.23093426,4297.5,4297.4,1e-08]
[1754788620738,3.904,4297.5,4297.4,0.48780001]
[1754788620966,3.904,4297.5,4297.4,0.96130001]
[1754788621169,3.904,4297.5,4297.4,1e-08]
[1754788622173,3.904,4297.5,4297.4,0.48780001]
[1754788622771,3.904,4297.5,4297.4,0.70128721]
[1754788622949,6.23093426,4297.5,4297.4,0.70128721]
[1754788623577,3.904,4297.5,4297.4,0.70128721]
[1754788623771,3.904,4297.5,4297.4,0.70126313]
[1754788624776,3.904,4297.5,4297.4,0.21346313]
[1754788625073,6.62133426,4297.5,4297.4,0.21346313]
[1754788625242,6.23093426,4297.5,4297.4,0.21346313]
[1754788625444,3.904,4297.5,4297.4,0.21346313]
[1754788626459,3.904,4297.5,4297.4,0.21346541]
[1754788626646,3.904,4297.5,4297.4,0.70126541]
[1754788627080,3.904,4297.5,4297.4,3.50175382]
[1754788627081,0.116,4297.5,4297.4,3.50175382]
[1754788627250,3.785,4297.9,4297.6,2.32687189]
[1754788627445,3.785,4297.9,4297.7,2.54028505]
[1754788627754,3.785,4297.9,4297.8,0.7012654]
[1754788629253,5.32641022,4298.5,4297.8,0.7012654]
[1754788629254,0.11600001,4299.1,4298.4,2.32643742]
[1754788629587,0.156,4299.9,4299.2,2.32599814]
[1754788629882,0.04,4299.9,4299.4,0.116]
[1754788630178,0.04,4299.9,4299.4,0.32933901]
[1754788630482,0.04,4299.9,4299.4,3.61654495]
[1754788632281,0.04,4299.9,4299.4,3.61605667]
[1754788633561,0.04,4299.9,4299.4,4.01705668]
[1754788633765,0.04,4299.9,4299.4,3.61605667]
[1754788635187,0.04,4299.9,4299.7,3.0]
[1754788635354,1.002,4300.0,4299.8,9.33105942]
[1754788635559,0.002,4300.0,4299.9,6.0119862]
[1754788635754,0.002,4300.4,4300.2,2.32547323]
[1754788635957,0.00200001,4300.9,4300.5,2.32531101]
[1754788636153,0.00200001,4300.9,4300.5,5.54967086]
[1754788636368,0.00200001,4300.9,4300.5,6.01166174]
[1754788636776,0.00200001,4300.9,4300.5,9.79166174]
[1754788638481,0.00200001,4300.9,4300.5,9.77436174]
[1754788638656,1e-08,4300.9,4300.8,2.8751488]
[1754788638862,0.002,4301.4,4301.0,2.87504068]
[1754788639099,0.002,4301.4,4301.1,6.87833783]
[1754788639394,0.002,4301.4,4301.3,5.87487852]